Workbook

Sheet Devis
A8: N° de Devis:D2020- | C8: 10
A10: Client: | E10: Site Internet
E12: Date : | F12: =TODAY() -> 2020-03-10
B16: Désignation | E16: Qté | F16: Prix / U | G16: Total Euros
G17: =IF(E17="","",E17*F17) -> 
A27: Bon pour accord
A28: Fait le
A29: Signature
D35: Montant Total | G35: =SUM(G17:G34) -> 0
A36: Durée de validité de l'offre : 1 mois
A37: Délai de réalisation : 3 semaines
D40: TVA non applicable, art.293-B du CGI
A42: MoustiK & K-cahuète - 4 Lotissement Terrefort - 33750 BARON - N° de siret :
A43: Mail: moustiketkcahuete@gmail.com Tél :

Sheet Facture
A8: N° de facture : | C8: 20200013
A10: Client: | E10: Site Internet
A11: Mme DEL SAZ Marie-Antoinette
A12: 2 le Tillac Nord | E12: Date : | F12: =TODAY() -> 2020-03-10
A13: 33490 SAINT MARTIAL
A14: Tél : 06 85 74 65 72
B16: Désignation | E16: Qté | F16: Prix / U | G16: Total Euros
G18: =IF(E18="","",E18*F18) -> 
D35: Montant Total | G35: =SUM(G17:G34) -> 0
D36: Acompte
D37: Reste dû | G37: =G35-G36 -> 0
A38: Mode de règlement : | C38: Chèque
A39: Date : | C39: 2019-02-20
D40: TVA non applicable, art.293-B du CGI
A42: MoustiK & K-cahuète - 4 Lotissement Terrefort - 33750 BARON - N° de siret :
A43: Mail: moustiketkcahuete@gmail.com Tél :

Sheet Clients
A1: Civilité | B1: Prénom | C1: Nom | D1: Adresse | E1: code Postal | F1: Ville | G1: N° Téléphone | H1: e-mail | I1: N° TVA
A2: Mme | B2: Marie-Antoinette | C2: DEL SAZ | D2: 2 le Tillac Nord | E2: 33490 | F2: SAINT MARTIAL | G2: 685746572 | H2: toinette.delsaz@sfr.fr

Sheet JANVIER
D1: ANNEE : | E1: 2020 | G1: Pour les recettes | H1: Nature = Sac à dos, Doudou, etc… | K1: Pour les achats | L1: Réf de l'Achat = Facture, ticket de caisse, Note,….
H2: Mode d'encaissement = Chèque, espèces, virement | L2: Mode de Paiement = Espèces, chèques,virement, etc…
D3: MOIS : | E3: JANVIER
A5: Livre chronologique des recettes | I5: Registre des achats et autres dépenses
A7: Date | B7: N° de Facture | C7: Réf. de la pièce | D7: Client | E7: Nature | F7: Montant | G7: Mode d’encaissement | I7: Date | J7: Réf. De l'Achat | K7: Fournisseur, désignation | L7: Nature | M7: Montant | N7: Mode de paiement
E111: TOTAL DU MOIS | F111: =SUM(F8:F109) -> 0 | L111: TOTAL DU MOIS | M111: =SUM(M8:M109) -> 0
E113: SOLDE DU MOIS | F113: =+F111-M111 -> 0

Sheet FEVRIER
D1: ANNEE : | E1: 2020 | G1: Pour les recettes | H1: Nature = Sac à dos, Doudou, etc… | K1: Pour les achats | L1: Réf de l'Achat = Facture, ticket de caisse, Note,….
H2: Mode d'encaissement = Chèque, espèces, virement | L2: Mode de Paiement = Espèces, chèques,virement, etc…
D3: MOIS : | E3: FEVRIER
A5: Livre chronologique des recettes | I5: Registre des achats et autres dépenses
A7: Date | B7: N° de Facture | C7: Réf. de la pièce | D7: Client | E7: Nature | F7: Montant | G7: Mode d’encaissement | I7: Date | J7: Réf. de la pièce | K7: Fournisseur, désignation | L7: Nature | M7: Montant | N7: Mode de paiement
E111: TOTAL DU MOIS | F111: =SUM(F8:F109) -> 0 | L111: TOTAL DU MOIS | M111: =SUM(M8:M109) -> 0
E113: SOLDE DU MOIS | F113: =+F111-M111 -> 0

Sheet MARS
D1: ANNEE : | E1: 2020 | G1: Pour les recettes | H1: Nature = Sac à dos, Doudou, etc… | K1: Pour les achats | L1: Réf de l'Achat = Facture, ticket de caisse, Note,….
H2: Mode d'encaissement = Chèque, espèces, virement | L2: Mode de Paiement = Espèces, chèques,virement, etc…
D3: MOIS : | E3: MARS
A5: Livre chronologique des recettes | I5: Registre des achats et autres dépenses
A7: Date | B7: N° de Facture | C7: Réf. de la pièce | D7: Client | E7: Nature | F7: Montant | G7: Mode d’encaissement | I7: Date | J7: Réf. de la pièce | K7: Fournisseur, désignation | L7: Nature | M7: Montant | N7: Mode de paiement
E111: TOTAL DU MOIS | F111: =SUM(F8:F109) -> 0 | L111: TOTAL DU MOIS | M111: =SUM(M8:M109) -> 0
E113: SOLDE DU MOIS | F113: =+F111-M111 -> 0

Sheet AVRIL
D1: ANNEE : | E1: 2020 | G1: Pour les recettes | H1: Nature = Sac à dos, Doudou, etc… | K1: Pour les achats | L1: Réf de l'Achat = Facture, ticket de caisse, Note,….
H2: Mode d'encaissement = Chèque, espèces, virement | L2: Mode de Paiement = Espèces, chèques,virement, etc…
D3: MOIS : | E3: AVRIL
A5: Livre chronologique des recettes | I5: Registre des achats et autres dépenses
A7: Date | B7: N° de Facture | C7: Réf. de la pièce | D7: Client | E7: Nature | F7: Montant | G7: Mode d’encaissement | I7: Date | J7: Réf. de la pièce | K7: Fournisseur, désignation | L7: Nature | M7: Montant | N7: Mode de paiement
E111: TOTAL DU MOIS | F111: =SUM(F8:F109) -> 0 | L111: TOTAL DU MOIS | M111: =SUM(M8:M109) -> 0
E113: SOLDE DU MOIS | F113: =+F111-M111 -> 0

Sheet MAI
D1: ANNEE : | E1: 2020 | G1: Pour les recettes | H1: Nature = Sac à dos, Doudou, etc… | K1: Pour les achats | L1: Réf de l'Achat = Facture, ticket de caisse, Note,….
H2: Mode d'encaissement = Chèque, espèces, virement | L2: Mode de Paiement = Espèces, chèques,virement, etc…
D3: MOIS : | E3: MAI
A5: Livre chronologique des recettes | I5: Registre des achats et autres dépenses
A7: Date | B7: N° de Facture | C7: Réf. de la pièce | D7: Client | E7: Nature | F7: Montant | G7: Mode d’encaissement | I7: Date | J7: Réf. de la pièce | K7: Fournisseur, désignation | L7: Nature | M7: Montant | N7: Mode de paiement
E111: TOTAL DU MOIS | F111: =SUM(F8:F109) -> 0 | L111: TOTAL DU MOIS | M111: =SUM(M8:M109) -> 0
E113: SOLDE DU MOIS | F113: =+F111-M111 -> 0

Sheet JUIN
D1: ANNEE : | E1: 2020 | G1: Pour les recettes | H1: Nature = Sac à dos, Doudou, etc… | K1: Pour les achats | L1: Réf de l'Achat = Facture, ticket de caisse, Note,….
H2: Mode d'encaissement = Chèque, espèces, virement | L2: Mode de Paiement = Espèces, chèques,virement, etc…
D3: MOIS : | E3: JUIN
A5: Livre chronologique des recettes | I5: Registre des achats et autres dépenses
A7: Date | B7: N° de Facture | C7: Réf. de la pièce | D7: Client | E7: Nature | F7: Montant | G7: Mode d’encaissement | I7: Date | J7: Réf. de la pièce | K7: Fournisseur, désignation | L7: Nature | M7: Montant | N7: Mode de paiement
E111: TOTAL DU MOIS | F111: =SUM(F8:F109) -> 0 | L111: TOTAL DU MOIS | M111: =SUM(M8:M109) -> 0
E113: SOLDE DU MOIS | F113: =+F111-M111 -> 0

Sheet JUILLET
D1: ANNEE : | E1: 2020 | G1: Pour les recettes | H1: Nature = Sac à dos, Doudou, etc… | K1: Pour les achats | L1: Réf de l'Achat = Facture, ticket de caisse, Note,….
H2: Mode d'encaissement = Chèque, espèces, virement | L2: Mode de Paiement = Espèces, chèques,virement, etc…
D3: MOIS : | E3: JUILLET
A5: Livre chronologique des recettes | I5: Registre des achats et autres dépenses
A7: Date | B7: N° de Facture | C7: Réf. de la pièce | D7: Client | E7: Nature | F7: Montant | G7: Mode d’encaissement | I7: Date | J7: Réf. de la pièce | K7: Fournisseur, désignation | L7: Nature | M7: Montant | N7: Mode de paiement
E111: TOTAL DU MOIS | F111: =SUM(F8:F109) -> 0 | L111: TOTAL DU MOIS | M111: =SUM(M8:M109) -> 0
E113: SOLDE DU MOIS | F113: =+F111-M111 -> 0

Sheet AOUT
D1: ANNEE : | E1: 2020 | G1: Pour les recettes | H1: Nature = Sac à dos, Doudou, etc… | K1: Pour les achats | L1: Réf de l'Achat = Facture, ticket de caisse, Note,….
H2: Mode d'encaissement = Chèque, espèces, virement | L2: Mode de Paiement = Espèces, chèques,virement, etc…
D3: MOIS : | E3: AOUT
A5: Livre chronologique des recettes | I5: Registre des achats et autres dépenses
A7: Date | B7: N° de Facture | C7: Réf. de la pièce | D7: Client | E7: Nature | F7: Montant | G7: Mode d’encaissement | I7: Date | J7: Réf. de la pièce | K7: Fournisseur, désignation | L7: Nature | M7: Montant | N7: Mode de paiement
E111: TOTAL DU MOIS | F111: =SUM(F8:F109) -> 0 | L111: TOTAL DU MOIS | M111: =SUM(M8:M109) -> 0
E113: SOLDE DU MOIS | F113: =+F111-M111 -> 0

Sheet SEPTEMBRE
D1: ANNEE : | E1: 2020 | G1: Pour les recettes | H1: Nature = Sac à dos, Doudou, etc… | K1: Pour les achats | L1: Réf de l'Achat = Facture, ticket de caisse, Note,….
H2: Mode d'encaissement = Chèque, espèces, virement | L2: Mode de Paiement = Espèces, chèques,virement, etc…
D3: MOIS : | E3: SEPTEMBRE
A5: Livre chronologique des recettes | I5: Registre des achats et autres dépenses
A7: Date | C7: Réf. de la pièce | D7: Client | E7: Nature | F7: Montant | G7: Mode d’encaissement | I7: Date | J7: Réf. de la pièce | K7: Fournisseur, désignation | L7: Nature | M7: Montant | N7: Mode de paiement
E111: TOTAL DU MOIS | F111: =SUM(F8:F109) -> 0 | L111: TOTAL DU MOIS | M111: =SUM(M8:M109) -> 0
E113: SOLDE DU MOIS | F113: =+F111-M111 -> 0

Sheet OCTOBRE
D1: ANNEE : | E1: 2020 | G1: Pour les recettes | H1: Nature = Sac à dos, Doudou, etc… | K1: Pour les achats | L1: Réf de l'Achat = Facture, ticket de caisse, Note,….
H2: Mode d'encaissement = Chèque, espèces, virement | L2: Mode de Paiement = Espèces, chèques,virement, etc…
D3: MOIS : | E3: OCTOBRE
A5: Livre chronologique des recettes | I5: Registre des achats et autres dépenses
A7: Date | B7: N° de Facture | C7: Réf. de la pièce | D7: Client | E7: Nature | F7: Montant | G7: Mode d’encaissement | I7: Date | J7: Réf. de la pièce | K7: Fournisseur, désignation | L7: Nature | M7: Montant | N7: Mode de paiement
E111: TOTAL DU MOIS | F111: =SUM(F8:F109) -> 0 | L111: TOTAL DU MOIS | M111: =SUM(M8:M109) -> 0
E113: SOLDE DU MOIS | F113: =+F111-M111 -> 0

Sheet NOVEMBRE
D1: ANNEE : | E1: 2020 | G1: Pour les recettes | H1: Nature = Sac à dos, Doudou, etc… | K1: Pour les achats | L1: Réf de l'Achat = Facture, ticket de caisse, Note,….
H2: Mode d'encaissement = Chèque, espèces, virement | L2: Mode de Paiement = Espèces, chèques,virement, etc…
D3: MOIS : | E3: OCTOBRE
A5: Livre chronologique des recettes | I5: Registre des achats et autres dépenses
A7: Date | B7: N° de Facture | C7: Réf. de la pièce | D7: Client | E7: Nature | F7: Montant | G7: Mode d’encaissement | I7: Date | J7: Réf. de la pièce | K7: Fournisseur, désignation | L7: Nature | M7: Montant | N7: Mode de paiement
E111: TOTAL DU MOIS | F111: =SUM(F8:F109) -> 0 | L111: TOTAL DU MOIS | M111: =SUM(M8:M109) -> 0
E113: SOLDE DU MOIS | F113: =+F111-M111 -> 0

Sheet DECEMBRE
D1: ANNEE : | E1: 2020 | G1: Pour les recettes | H1: Nature = Sac à dos, Doudou, etc… | K1: Pour les achats | L1: Réf de l'Achat = Facture, ticket de caisse, Note,….
H2: Mode d'encaissement = Chèque, espèces, virement | L2: Mode de Paiement = Espèces, chèques,virement, etc…
D3: MOIS : | E3: OCTOBRE
A5: Livre chronologique des recettes | I5: Registre des achats et autres dépenses
A7: Date | B7: N° de Facture | C7: Réf. de la pièce | D7: Client | E7: Nature | F7: Montant | G7: Mode d’encaissement | I7: Date | J7: Réf. de la pièce | K7: Fournisseur, désignation | L7: Nature | M7: Montant | N7: Mode de paiement
E111: TOTAL DU MOIS | F111: =SUM(F8:F109) -> 0 | L111: TOTAL DU MOIS | M111: =SUM(M8:M109) -> 0
E113: SOLDE DU MOIS | F113: =+F111-M111 -> 0

Sheet RECAPITULATIF
A1: Récapitulatif | C1: Les données de ce feuillet sont mises à jour automatiquement | I1: Résultat Mensuel
A3: MOIS | B3: Recettes | C3: Dépenses | D3: Solde mois | E3: Trésorerie | G3: MOIS | H3: Solde mois | I3: Charges | J3: F.Bancaires | K3: Assurances | L3: Bénéfice Net
A4: JANVIER | B4: =JANVIER!$F$111 -> 0 | C4: =JANVIER!$M$111 -> 0 | D4: =B4-C4 -> 0 | E4: =D4 -> 0 | G4: JANVIER | H4: =D4 -> 0 | I4: =H4*24.8% -> 0 | J4: 10 | K4: 10 | L4: =H4-SUM(I4:K4) -> -20
A5: FEVRIER | B5: =FEVRIER!$F$111 -> 0 | C5: =FEVRIER!$M$111 -> 0 | D5: =B5-C5 -> 0 | E5: =E4+D5 -> 0 | G5: FEVRIER | H5: =D5 -> 0 | I5: =H5*24.8% -> 0 | J5: 10 | K5: 10 | L5: -20
A6: MARS | B6: =MARS!$F$111 -> 0 | C6: =MARS!$M$111 -> 0 | D6: 0 | E6: =E5+D6 -> 0 | G6: MARS | H6: 0 | I6: 0 | J6: 10 | K6: 10 | L6: -20
A7: AVRIL | B7: =AVRIL!$F$111 -> 0 | C7: =AVRIL!$M$111 -> 0 | D7: 0 | E7: 0 | G7: AVRIL | H7: 0 | I7: 0 | J7: 10 | K7: 10 | L7: -20
A8: MAI | B8: =MAI!$F$111 -> 0 | C8: =MAI!$M$111 -> 0 | D8: 0 | E8: 0 | G8: MAI | H8: 0 | I8: 0 | J8: 10 | K8: 10 | L8: -20
A9: JUIN | B9: =JUIN!$F$111 -> 0 | C9: =JUIN!$M$111 -> 0 | D9: 0 | E9: 0 | G9: JUIN | H9: 0 | I9: 0 | J9: 10 | K9: 10 | L9: -20
A10: JUILLET | B10: =JUILLET!$F$111 -> 0 | C10: =JUILLET!$M$111 -> 0 | D10: 0 | E10: 0 | G10: JUILLET | H10: 0 | I10: 0 | J10: 10 | K10: 10 | L10: -20
A11: AOUT | B11: =AOUT!$F$111 -> 0 | C11: =AOUT!$M$111 -> 0 | D11: 0 | E11: 0 | G11: AOUT | H11: 0 | I11: 0 | J11: 10 | K11: 10 | L11: -20
A12: SEPTEMBRE | B12: =SEPTEMBRE!$F$111 -> 0 | C12: =SEPTEMBRE!$M$111 -> 0 | D12: 0 | E12: 0 | G12: SEPTEMBRE | H12: 0 | I12: 0 | J12: 10 | K12: 10 | L12: -20
A13: OCTOBRE | B13: =OCTOBRE!$F$111 -> 0 | C13: =OCTOBRE!$M$111 -> 0 | D13: 0 | E13: 0 | G13: OCTOBRE | H13: 0 | I13: 0 | J13: 10 | K13: 10 | L13: -20
A14: NOVEMBRE | B14: =NOVEMBRE!$F$111 -> 0 | C14: =NOVEMBRE!$M$111 -> 0 | D14: 0 | E14: 0 | G14: NOVEMBRE | H14: 0 | I14: 0 | J14: 10 | K14: 10 | L14: -20
A15: DECEMBRE | B15: =DECEMBRE!$F$111 -> 0 | C15: =DECEMBRE!$M$111 -> 0 | D15: 0 | E15: =E14+D15 -> 0 | G15: DECEMBRE | H15: 0 | I15: 0 | J15: 10 | K15: 10 | L15: -20
A17: TOTAUX | B17: =SUM(B4:B15) -> 0 | C17: =SUM(C4:C15) -> 0 | G17: TOTAUX | H17: =SUM(H4:H15) -> 0 | I17: =SUM(I4:I15) -> 0
A18: SOLDE ANNEE | B18: =+B17-C17 -> 0 | G18: SOLDE ANNEE | H18: =+H17-I17 -> 0 | I18: TOTAL TRESORERIE/Exercice | L18: =SUM(L4:L15) -> -240
C19: Départ Activité au20/03/20 = 57644 € de CA
C20: Sur année complète = 72500 €
A21: Graphique des recettes et achats par mois : | G21: Graphique Résultat Mensuel
A45: Graphique de trésorerie :

Sheet Suivi CA
A3: Suivi de Chiffre d'affaire MoustiK et K- cahuète 2020
A6: Colonne1 | B6: Colonne2 | C6: Colonne3 | D6: Colonne4 | E6: Colonne5 | F6: Colonne6 | G6: Colonne7 | H6: Colonne8 | I6: Colonne9 | J6: Colonne10 | K6: Colonne11 | L6: Colonne12 | M6: Colonne13
A7: Nombre de | B7: Chiffre d'affaires | C7: Charges sociales | D7: Impôts libératoires | E7: Taxe pour la | F7: Cotisation à la | G7: Montant total des | H7: Résultat avant | J7: Frais | K7: Frais | M7: Reste net
A8: Clients | B8: cumulé | C8: Cumulées | D8: cumulés | E8: Formation cumulée | F8: chambre des métiers | G8: prélèvements | H8: charges | J8: bancaire | K8: d'assurances
A9: 1,00 | B9: 100 | C9: =Tableau4[[#This Row],[Colonne2]]*0.22 -> 22 | D9: =Tableau4[[#This Row],[Colonne2]]*0.017 -> 1.7 | E9: =Tableau4[[#This Row],[Colonne2]]*0.003 -> 0.3 | F9: =Tableau4[[#This Row],[Colonne2]]*0.0048 -> 0.48 | G9: =SUM(Tableau4[[#This Row],[Colonne3]:[Colonne6]]) -> 24.48 | H9: =Tableau4[[#This Row],[Colonne2]]-Tableau4[[#This Row],[Colonne7]] -> 75.52 | J9: 10 | K9: 10 | M9: =H9-J9-K9 -> 55.52
A10: 2,00 | B10: 200 | C10: =Tableau4[[#This Row],[Colonne2]]*0.22 -> 44 | D10: =Tableau4[[#This Row],[Colonne2]]*0.017 -> 3.4 | E10: =Tableau4[[#This Row],[Colonne2]]*0.003 -> 0.6 | F10: =Tableau4[[#This Row],[Colonne2]]*0.0048 -> 0.96 | G10: =SUM(Tableau4[[#This Row],[Colonne3]:[Colonne6]]) -> 48.96 | H10: =Tableau4[[#This Row],[Colonne2]]-Tableau4[[#This Row],[Colonne7]] -> 151.04 | J10: 10 | K10: 10 | M10: =H10-J10-K10 -> 131.04
A11: 3,00 | B11: 300 | C11: =Tableau4[[#This Row],[Colonne2]]*0.22 -> 66 | D11: =Tableau4[[#This Row],[Colonne2]]*0.017 -> 5.1 | E11: =Tableau4[[#This Row],[Colonne2]]*0.003 -> 0.9 | F11: =Tableau4[[#This Row],[Colonne2]]*0.0048 -> 1.44 | G11: =SUM(Tableau4[[#This Row],[Colonne3]:[Colonne6]]) -> 73.44 | H11: =Tableau4[[#This Row],[Colonne2]]-Tableau4[[#This Row],[Colonne7]] -> 226.56 | J11: 10 | K11: 10 | M11: 206.56
A12: 4,00 | B12: 400 | C12: =Tableau4[[#This Row],[Colonne2]]*0.22 -> 88 | D12: =Tableau4[[#This Row],[Colonne2]]*0.017 -> 6.8 | E12: =Tableau4[[#This Row],[Colonne2]]*0.003 -> 1.2 | F12: =Tableau4[[#This Row],[Colonne2]]*0.0048 -> 1.92 | G12: =SUM(Tableau4[[#This Row],[Colonne3]:[Colonne6]]) -> 97.92 | H12: =Tableau4[[#This Row],[Colonne2]]-Tableau4[[#This Row],[Colonne7]] -> 302.08 | J12: 10 | K12: 10 | M12: 282.08
A13: 5,00 | B13: 500 | C13: =Tableau4[[#This Row],[Colonne2]]*0.22 -> 110 | D13: =Tableau4[[#This Row],[Colonne2]]*0.017 -> 8.5 | E13: =Tableau4[[#This Row],[Colonne2]]*0.003 -> 1.5 | F13: =Tableau4[[#This Row],[Colonne2]]*0.0048 -> 2.4 | G13: =SUM(Tableau4[[#This Row],[Colonne3]:[Colonne6]]) -> 122.4 | H13: =Tableau4[[#This Row],[Colonne2]]-Tableau4[[#This Row],[Colonne7]] -> 377.6 | J13: 10 | K13: 10 | M13: 357.6
A14: 6,00 | B14: 600 | C14: =Tableau4[[#This Row],[Colonne2]]*0.22 -> 132 | D14: =Tableau4[[#This Row],[Colonne2]]*0.017 -> 10.2 | E14: =Tableau4[[#This Row],[Colonne2]]*0.003 -> 1.8 | F14: =Tableau4[[#This Row],[Colonne2]]*0.0048 -> 2.88 | G14: =SUM(Tableau4[[#This Row],[Colonne3]:[Colonne6]]) -> 146.88 | H14: =Tableau4[[#This Row],[Colonne2]]-Tableau4[[#This Row],[Colonne7]] -> 453.12 | J14: 10 | K14: 10 | M14: 433.12
A15: 7,00 | B15: 700 | C15: =Tableau4[[#This Row],[Colonne2]]*0.22 -> 154 | D15: =Tableau4[[#This Row],[Colonne2]]*0.017 -> 11.9 | E15: =Tableau4[[#This Row],[Colonne2]]*0.003 -> 2.1 | F15: =Tableau4[[#This Row],[Colonne2]]*0.0048 -> 3.36 | G15: =SUM(Tableau4[[#This Row],[Colonne3]:[Colonne6]]) -> 171.36 | H15: =Tableau4[[#This Row],[Colonne2]]-Tableau4[[#This Row],[Colonne7]] -> 528.64 | J15: 10 | K15: 10 | M15: 508.64
A16: 8,00 | B16: 800 | C16: =Tableau4[[#This Row],[Colonne2]]*0.22 -> 176 | D16: =Tableau4[[#This Row],[Colonne2]]*0.017 -> 13.6 | E16: =Tableau4[[#This Row],[Colonne2]]*0.003 -> 2.4 | F16: =Tableau4[[#This Row],[Colonne2]]*0.0048 -> 3.84 | G16: =SUM(Tableau4[[#This Row],[Colonne3]:[Colonne6]]) -> 195.84 | H16: =Tableau4[[#This Row],[Colonne2]]-Tableau4[[#This Row],[Colonne7]] -> 604.16 | J16: 10 | K16: 10 | M16: 584.16
A17: 9,00 | B17: 900 | C17: =Tableau4[[#This Row],[Colonne2]]*0.22 -> 198 | D17: =Tableau4[[#This Row],[Colonne2]]*0.017 -> 15.3 | E17: =Tableau4[[#This Row],[Colonne2]]*0.003 -> 2.7 | F17: =Tableau4[[#This Row],[Colonne2]]*0.0048 -> 4.32 | G17: =SUM(Tableau4[[#This Row],[Colonne3]:[Colonne6]]) -> 220.32 | H17: =Tableau4[[#This Row],[Colonne2]]-Tableau4[[#This Row],[Colonne7]] -> 679.68 | J17: 10 | K17: 10 | M17: 659.68
A18: 10,00 | B18: 1000 | C18: =Tableau4[[#This Row],[Colonne2]]*0.22 -> 220 | D18: =Tableau4[[#This Row],[Colonne2]]*0.017 -> 17 | E18: =Tableau4[[#This Row],[Colonne2]]*0.003 -> 3 | F18: =Tableau4[[#This Row],[Colonne2]]*0.0048 -> 4.8 | G18: =SUM(Tableau4[[#This Row],[Colonne3]:[Colonne6]]) -> 244.8 | H18: =Tableau4[[#This Row],[Colonne2]]-Tableau4[[#This Row],[Colonne7]] -> 755.2 | J18: 10 | K18: 10 | M18: 735.2
A19: 11,00 | B19: 1100 | C19: =Tableau4[[#This Row],[Colonne2]]*0.22 -> 242 | D19: =Tableau4[[#This Row],[Colonne2]]*0.017 -> 18.7 | E19: =Tableau4[[#This Row],[Colonne2]]*0.003 -> 3.3 | F19: =Tableau4[[#This Row],[Colonne2]]*0.0048 -> 5.28 | G19: =SUM(Tableau4[[#This Row],[Colonne3]:[Colonne6]]) -> 269.28 | H19: =Tableau4[[#This Row],[Colonne2]]-Tableau4[[#This Row],[Colonne7]] -> 830.72 | J19: 10 | K19: 10 | M19: 810.72
A20: 12,00 | B20: 1200 | C20: =Tableau4[[#This Row],[Colonne2]]*0.22 -> 264 | D20: =Tableau4[[#This Row],[Colonne2]]*0.017 -> 20.4 | E20: =Tableau4[[#This Row],[Colonne2]]*0.003 -> 3.6 | F20: =Tableau4[[#This Row],[Colonne2]]*0.0048 -> 5.76 | G20: =SUM(Tableau4[[#This Row],[Colonne3]:[Colonne6]]) -> 293.76 | H20: =Tableau4[[#This Row],[Colonne2]]-Tableau4[[#This Row],[Colonne7]] -> 906.24 | J20: 10 | K20: 10 | M20: 886.24
A21: 13,00 | B21: 1300 | C21: =Tableau4[[#This Row],[Colonne2]]*0.22 -> 286 | D21: =Tableau4[[#This Row],[Colonne2]]*0.017 -> 22.1 | E21: =Tableau4[[#This Row],[Colonne2]]*0.003 -> 3.9 | F21: =Tableau4[[#This Row],[Colonne2]]*0.0048 -> 6.24 | G21: =SUM(Tableau4[[#This Row],[Colonne3]:[Colonne6]]) -> 318.24 | H21: =Tableau4[[#This Row],[Colonne2]]-Tableau4[[#This Row],[Colonne7]] -> 981.76 | J21: 10 | K21: 10 | M21: 961.76
A22: 14,00 | B22: 1400 | C22: =Tableau4[[#This Row],[Colonne2]]*0.22 -> 308 | D22: =Tableau4[[#This Row],[Colonne2]]*0.017 -> 23.8 | E22: =Tableau4[[#This Row],[Colonne2]]*0.003 -> 4.2 | F22: =Tableau4[[#This Row],[Colonne2]]*0.0048 -> 6.72 | G22: =SUM(Tableau4[[#This Row],[Colonne3]:[Colonne6]]) -> 342.72 | H22: =Tableau4[[#This Row],[Colonne2]]-Tableau4[[#This Row],[Colonne7]] -> 1057.28 | J22: 10 | K22: 10 | M22: 1037.28
A23: 15,00 | B23: 1500 | C23: =Tableau4[[#This Row],[Colonne2]]*0.22 -> 330 | D23: =Tableau4[[#This Row],[Colonne2]]*0.017 -> 25.5 | E23: =Tableau4[[#This Row],[Colonne2]]*0.003 -> 4.5 | F23: =Tableau4[[#This Row],[Colonne2]]*0.0048 -> 7.2 | G23: =SUM(Tableau4[[#This Row],[Colonne3]:[Colonne6]]) -> 367.2 | H23: =Tableau4[[#This Row],[Colonne2]]-Tableau4[[#This Row],[Colonne7]] -> 1132.8 | J23: 10 | K23: 10 | M23: 1112.8
A24: 16,00 | B24: 1600 | C24: =Tableau4[[#This Row],[Colonne2]]*0.22 -> 352 | D24: =Tableau4[[#This Row],[Colonne2]]*0.017 -> 27.2 | E24: =Tableau4[[#This Row],[Colonne2]]*0.003 -> 4.8 | F24: =Tableau4[[#This Row],[Colonne2]]*0.0048 -> 7.68 | G24: =SUM(Tableau4[[#This Row],[Colonne3]:[Colonne6]]) -> 391.68 | H24: =Tableau4[[#This Row],[Colonne2]]-Tableau4[[#This Row],[Colonne7]] -> 1208.32 | J24: 10 | K24: 10 | M24: 1188.32
A25: 17,00 | B25: 1700 | C25: =Tableau4[[#This Row],[Colonne2]]*0.22 -> 374 | D25: =Tableau4[[#This Row],[Colonne2]]*0.017 -> 28.9 | E25: =Tableau4[[#This Row],[Colonne2]]*0.003 -> 5.1 | F25: =Tableau4[[#This Row],[Colonne2]]*0.0048 -> 8.16 | G25: =SUM(Tableau4[[#This Row],[Colonne3]:[Colonne6]]) -> 416.16 | H25: =Tableau4[[#This Row],[Colonne2]]-Tableau4[[#This Row],[Colonne7]] -> 1283.84 | J25: 10 | K25: 10 | M25: 1263.84
A26: 18,00 | B26: 1800 | C26: =Tableau4[[#This Row],[Colonne2]]*0.22 -> 396 | D26: =Tableau4[[#This Row],[Colonne2]]*0.017 -> 30.6 | E26: =Tableau4[[#This Row],[Colonne2]]*0.003 -> 5.4 | F26: =Tableau4[[#This Row],[Colonne2]]*0.0048 -> 8.64 | G26: =SUM(Tableau4[[#This Row],[Colonne3]:[Colonne6]]) -> 440.64 | H26: =Tableau4[[#This Row],[Colonne2]]-Tableau4[[#This Row],[Colonne7]] -> 1359.36 | J26: 10 | K26: 10 | M26: 1339.36
A27: 19,00 | B27: 1900 | C27: =Tableau4[[#This Row],[Colonne2]]*0.22 -> 418 | D27: =Tableau4[[#This Row],[Colonne2]]*0.017 -> 32.3 | E27: =Tableau4[[#This Row],[Colonne2]]*0.003 -> 5.7 | F27: =Tableau4[[#This Row],[Colonne2]]*0.0048 -> 9.12 | G27: =SUM(Tableau4[[#This Row],[Colonne3]:[Colonne6]]) -> 465.12 | H27: =Tableau4[[#This Row],[Colonne2]]-Tableau4[[#This Row],[Colonne7]] -> 1434.88 | J27: 10 | K27: 10 | M27: 1414.88
A28: 20,00 | B28: 2000 | C28: =Tableau4[[#This Row],[Colonne2]]*0.22 -> 440 | D28: =Tableau4[[#This Row],[Colonne2]]*0.017 -> 34 | E28: =Tableau4[[#This Row],[Colonne2]]*0.003 -> 6 | F28: =Tableau4[[#This Row],[Colonne2]]*0.0048 -> 9.6 | G28: =SUM(Tableau4[[#This Row],[Colonne3]:[Colonne6]]) -> 489.6 | H28: =Tableau4[[#This Row],[Colonne2]]-Tableau4[[#This Row],[Colonne7]] -> 1510.4 | J28: 10 | K28: 10 | M28: 1490.4
A29: 21,00 | B29: 2100 | C29: =Tableau4[[#This Row],[Colonne2]]*0.22 -> 462 | D29: =Tableau4[[#This Row],[Colonne2]]*0.017 -> 35.7 | E29: =Tableau4[[#This Row],[Colonne2]]*0.003 -> 6.3 | F29: =Tableau4[[#This Row],[Colonne2]]*0.0048 -> 10.08 | G29: =SUM(Tableau4[[#This Row],[Colonne3]:[Colonne6]]) -> 514.08 | H29: =Tableau4[[#This Row],[Colonne2]]-Tableau4[[#This Row],[Colonne7]] -> 1585.92 | J29: 10 | K29: 10 | M29: 1565.92
A30: 22,00 | B30: 2200 | C30: =Tableau4[[#This Row],[Colonne2]]*0.22 -> 484 | D30: =Tableau4[[#This Row],[Colonne2]]*0.017 -> 37.4 | E30: =Tableau4[[#This Row],[Colonne2]]*0.003 -> 6.6 | F30: =Tableau4[[#This Row],[Colonne2]]*0.0048 -> 10.56 | G30: =SUM(Tableau4[[#This Row],[Colonne3]:[Colonne6]]) -> 538.56 | H30: =Tableau4[[#This Row],[Colonne2]]-Tableau4[[#This Row],[Colonne7]] -> 1661.44 | J30: 10 | K30: 10 | M30: 1641.44
A31: 23,00 | B31: 2300 | C31: =Tableau4[[#This Row],[Colonne2]]*0.22 -> 506 | D31: =Tableau4[[#This Row],[Colonne2]]*0.017 -> 39.1 | E31: =Tableau4[[#This Row],[Colonne2]]*0.003 -> 6.9 | F31: =Tableau4[[#This Row],[Colonne2]]*0.0048 -> 11.04 | G31: =SUM(Tableau4[[#This Row],[Colonne3]:[Colonne6]]) -> 563.04 | H31: =Tableau4[[#This Row],[Colonne2]]-Tableau4[[#This Row],[Colonne7]] -> 1736.96 | J31: 10 | K31: 10 | M31: 1716.96
A32: 24,00 | B32: 2400 | C32: =Tableau4[[#This Row],[Colonne2]]*0.22 -> 528 | D32: =Tableau4[[#This Row],[Colonne2]]*0.017 -> 40.8 | E32: =Tableau4[[#This Row],[Colonne2]]*0.003 -> 7.2 | F32: =Tableau4[[#This Row],[Colonne2]]*0.0048 -> 11.52 | G32: =SUM(Tableau4[[#This Row],[Colonne3]:[Colonne6]]) -> 587.52 | H32: =Tableau4[[#This Row],[Colonne2]]-Tableau4[[#This Row],[Colonne7]] -> 1812.48 | J32: 10 | K32: 10 | M32: 1792.48
A33: 25,00 | B33: 2500 | C33: =Tableau4[[#This Row],[Colonne2]]*0.22 -> 550 | D33: =Tableau4[[#This Row],[Colonne2]]*0.017 -> 42.5 | E33: =Tableau4[[#This Row],[Colonne2]]*0.003 -> 7.5 | F33: =Tableau4[[#This Row],[Colonne2]]*0.0048 -> 12 | G33: =SUM(Tableau4[[#This Row],[Colonne3]:[Colonne6]]) -> 612 | H33: =Tableau4[[#This Row],[Colonne2]]-Tableau4[[#This Row],[Colonne7]] -> 1888 | J33: 10 | K33: 10 | M33: 1868
A34: 26,00 | B34: 2600 | C34: =Tableau4[[#This Row],[Colonne2]]*0.22 -> 572 | D34: =Tableau4[[#This Row],[Colonne2]]*0.017 -> 44.2 | E34: =Tableau4[[#This Row],[Colonne2]]*0.003 -> 7.8 | F34: =Tableau4[[#This Row],[Colonne2]]*0.0048 -> 12.48 | G34: =SUM(Tableau4[[#This Row],[Colonne3]:[Colonne6]]) -> 636.48 | H34: =Tableau4[[#This Row],[Colonne2]]-Tableau4[[#This Row],[Colonne7]] -> 1963.52 | J34: 10 | K34: 10 | M34: 1943.52
A35: 27,00 | B35: 2700 | C35: =Tableau4[[#This Row],[Colonne2]]*0.22 -> 594 | D35: =Tableau4[[#This Row],[Colonne2]]*0.017 -> 45.9 | E35: =Tableau4[[#This Row],[Colonne2]]*0.003 -> 8.1 | F35: =Tableau4[[#This Row],[Colonne2]]*0.0048 -> 12.96 | G35: =SUM(Tableau4[[#This Row],[Colonne3]:[Colonne6]]) -> 660.96 | H35: =Tableau4[[#This Row],[Colonne2]]-Tableau4[[#This Row],[Colonne7]] -> 2039.04 | J35: 10 | K35: 10 | M35: 2019.04
A36: 28,00 | B36: 2800 | C36: =Tableau4[[#This Row],[Colonne2]]*0.22 -> 616 | D36: =Tableau4[[#This Row],[Colonne2]]*0.017 -> 47.6 | E36: =Tableau4[[#This Row],[Colonne2]]*0.003 -> 8.4 | F36: =Tableau4[[#This Row],[Colonne2]]*0.0048 -> 13.44 | G36: =SUM(Tableau4[[#This Row],[Colonne3]:[Colonne6]]) -> 685.44 | H36: =Tableau4[[#This Row],[Colonne2]]-Tableau4[[#This Row],[Colonne7]] -> 2114.56 | J36: 10 | K36: 10 | M36: 2094.56
A37: 29,00 | B37: 2900 | C37: =Tableau4[[#This Row],[Colonne2]]*0.22 -> 638 | D37: =Tableau4[[#This Row],[Colonne2]]*0.017 -> 49.3 | E37: =Tableau4[[#This Row],[Colonne2]]*0.003 -> 8.7 | F37: =Tableau4[[#This Row],[Colonne2]]*0.0048 -> 13.92 | G37: =SUM(Tableau4[[#This Row],[Colonne3]:[Colonne6]]) -> 709.92 | H37: =Tableau4[[#This Row],[Colonne2]]-Tableau4[[#This Row],[Colonne7]] -> 2190.08 | J37: 10 | K37: 10 | M37: 2170.08
A38: 30,00 | B38: 3000 | C38: =Tableau4[[#This Row],[Colonne2]]*0.22 -> 660 | D38: =Tableau4[[#This Row],[Colonne2]]*0.017 -> 51 | E38: =Tableau4[[#This Row],[Colonne2]]*0.003 -> 9 | F38: =Tableau4[[#This Row],[Colonne2]]*0.0048 -> 14.4 | G38: =SUM(Tableau4[[#This Row],[Colonne3]:[Colonne6]]) -> 734.4 | H38: =Tableau4[[#This Row],[Colonne2]]-Tableau4[[#This Row],[Colonne7]] -> 2265.6 | J38: 10 | K38: 10 | M38: 2245.6
A39: 31,00 | B39: 3100 | C39: =Tableau4[[#This Row],[Colonne2]]*0.22 -> 682 | D39: =Tableau4[[#This Row],[Colonne2]]*0.017 -> 52.7 | E39: =Tableau4[[#This Row],[Colonne2]]*0.003 -> 9.3 | F39: =Tableau4[[#This Row],[Colonne2]]*0.0048 -> 14.88 | G39: =SUM(Tableau4[[#This Row],[Colonne3]:[Colonne6]]) -> 758.88 | H39: =Tableau4[[#This Row],[Colonne2]]-Tableau4[[#This Row],[Colonne7]] -> 2341.12 | J39: 10 | K39: 10 | M39: 2321.12
A40: 32,00 | B40: 3200 | C40: =Tableau4[[#This Row],[Colonne2]]*0.22 -> 704 | D40: =Tableau4[[#This Row],[Colonne2]]*0.017 -> 54.4 | E40: =Tableau4[[#This Row],[Colonne2]]*0.003 -> 9.6 | F40: =Tableau4[[#This Row],[Colonne2]]*0.0048 -> 15.36 | G40: =SUM(Tableau4[[#This Row],[Colonne3]:[Colonne6]]) -> 783.36 | H40: =Tableau4[[#This Row],[Colonne2]]-Tableau4[[#This Row],[Colonne7]] -> 2416.64 | J40: 10 | K40: 10 | M40: 2396.64
A41: 33,00 | B41: 3300 | C41: =Tableau4[[#This Row],[Colonne2]]*0.22 -> 726 | D41: =Tableau4[[#This Row],[Colonne2]]*0.017 -> 56.1 | E41: =Tableau4[[#This Row],[Colonne2]]*0.003 -> 9.9 | F41: =Tableau4[[#This Row],[Colonne2]]*0.0048 -> 15.84 | G41: =SUM(Tableau4[[#This Row],[Colonne3]:[Colonne6]]) -> 807.84 | H41: =Tableau4[[#This Row],[Colonne2]]-Tableau4[[#This Row],[Colonne7]] -> 2492.16 | J41: 10 | K41: 10 | M41: 2472.16

Sheet Explications
A1: Livre des recettes-dépenses pour le micro-entrepreneur
A3: Les Chambres de Commerce et d'Industrie ont conçu un outil pratique et simple pour vous aider à suivre l'évolution de votre chiffre d'affaires tout au long de l'année.
A5: Vous pouvez utiliser ce modèle de deux façons différentes : - vous imprimez les pages et vous les complétez manuellement - vous le remplissez directement sur Excel et les calculs sont automatiques.
A7: Le livre des recettes
A8: Pour bien le compléter vous devez d'abord définir le montant de votre plafond maximum de chiffre d'affaires à ne pas dépasser. Pour cela, consultez le site des CCI pour savoir de quel seuil relève votre activité :
A9: http://www.cci.fr/web/auto-entrepreneur/chiffre-d-affaires-micro-entrepreneur
A11: En fonction de votre activité, vous utiliserez l'onglet : - Activité principale : si vous n'exercez qu'une seule activité - Activité principale et activité secondaire : si vous exercez une activité mixte.
A13: Si vous avez démarré votre activité en cours d'année vous devez ABSOLUMENT calculé votre plafond au prorata temporis. Calculez votre seuil de chiffre d'affaires de la 1ère année avec le calculateur de l'APCE :
A14: http://www.apce.com/apce3/auto-entrepreneur/index.php?&rub=&rubID=1&page=10550
A16: Pour chaque vente, vous devez indiquer : - la date - la référence de la pièce (numéro de facture, devis, ticket de caisse, etc.) - le mode d'encaissement (espèces, chèque, carte bleue) - le montant de la vente
A17: Le tableau calculera alors automatiquement votre chiffre d'affaires du mois et votre chiffre d'affaires total de l'année. Si vous avez une activité mixte, le calcul se fait automatiquement dans chaque onglet ("activité principale" et "activité secondaire") ainsi que dans l'onglet "mixte". Cet onglet vous permet de suivre la part de chiffre d'affaires à ne pas dépasser pour chacune des activité.
A19: Il existe alors trois cas possibles : - la case "total année" est verte : tout va bien, votre chiffre d'affaires est inférieur au seuil maximal - la case "total année" est orange : attention votre chiffre d'affaires est proche du plafond (à 20%) - la case "total année" est rouge : vous avez atteint voire dépassé le seuil de chiffre d'affaires, contactez au plus vite votre CCI pour ne pas dépasser la marge de tolérance ou changer de régime.
A21: Ces tableaux vous aideront à connaître votre chiffre d'affaires. Rappelons que c'est sur ce montant que vous paierez votre impôt et vos cotisations sociales. Ce n'est pas ce qui restera dans votre poche ! Vous devez bien garder en tête que ce que vous allez réellement gagner est égal à : Chiffre d'affaires - dépenses - impôt - cotisations sociales Le chiffre d'affaires est la somme des ventes que vous avez effectuées et qui vous ont été payées et correspond au montant que vous devez déclarer à la fin du mois ou du trimestre et lors de votre déclaration d'impôt sur le revenu.
A23: Le livre des dépenses
A24: Vous devrez également remplir l'onglet "registre achat" qui va servir à lister l'ensemble de vos dépenses liées à l'auto-entreprise.
A26: N'oubliez pas de s'incrire dans ce livre, TOUTES vos dépenses (assurances, achats, abonnements de transport…) y compris vos costisations sociales et, éventuellement, votre impôt.
A28: Si vous saisissez toutes vos dépenses et toutes vos recettes, la différence des deux vous donnera l'argent que votre activité vous générera réellement.

Sheet Fonc. logiciel
B3: Pour démarrer cliquer sur le bouton Options.
B4: Choisir activer ce contenu
B6: Pour Fermer le fichier penser à enregistrer avant.
B11: Pour la nouvelle Facture, cliquer sur le bouton N° de Facture
B12: Le numéro changera automatiquement
B14: La date se mettra à jour automatiquement
B16: Rentrer le client et son adresse + téléphone et saisir les renseignements dans
B17: l'onglet clients.
B18: Remplir les éléments de la facture, dans l'onglet Factures
B20: Remplir les éléments de l'onglet du mois pour les Achats et les ventes
B21: ( Classer dans un classeur les Factures des achats et dans un autres les
B22: Ventes copies des Factures )
B24: Pour imprimer les factures ou devis il faudra cliquer sur le bouton Imprimante
B25: des onglets Devis ou Factures
B27: Pour le changement d'exercice il faudra au 01/01/2021 Modifier le numèro à coté
B28: de N° de Facture en mettant 20210001
